[Event "2026 Biel Blitz Open"]
[Site "Biel, CH"]
[Date "2026.07.19"]
[Round "11"]
[White "Schweizer, Simon"]
[Black "El-Mais, Ibaa"]
[Result "1-0"]
[Board "19"]
[TimeControl "180+2"]
[WhiteFideId "1325361"]
[BlackFideId "1312715"]
[WhiteElo "2182"]
[BlackElo "2012"]
[WhiteClock "0:02:06"]
[BlackClock "0:00:07"]
[Variant "Standard"]
[EndDate "2026.07.19"]
[EndTime "15:23:06"]

1. e4 {[%clk 0:03:03]}  e5 {[%clk 0:03:02]} 2. Nf3 {[%clk 0:03:05]}  Nc6 {[%clk 0:03:03]} 3. Nc3 {[%clk 0:03:06]}  Nf6 {[%clk 0:03:03]}
4. g3 {[%clk 0:03:07]}  Nxe4 {[%clk 0:03:02]} 5. Nxe4 {[%clk 0:03:07]}  d5 {[%clk 0:03:03]} 6. Nc3 {[%clk 0:03:08]}  d4 {[%clk 0:02:59]}
7. Bg2 {[%clk 0:03:09]}  dxc3 {[%clk 0:02:53]} 8. bxc3 {[%clk 0:03:10]}  Bg4 {[%clk 0:02:41]} 9. Qe2 {[%clk 0:03:03]}  Qd5 {[%clk 0:01:19]}
10. h3 {[%clk 0:03:03]}  Be6 {[%clk 0:00:43]} 11. O-O {[%clk 0:03:00]}  f6 {[%clk 0:00:35]} 12. d4 {[%clk 0:02:52]}  O-O-O {[%clk 0:00:30]}
13. Re1 {[%clk 0:02:52]}  Bd6 {[%clk 0:00:19]} 14. Nxe5 {[%clk 0:02:46]}  fxe5 {[%clk 0:00:15]} 15. Bxd5 {[%clk 0:02:46]}  Bxd5 {[%clk 0:00:16]}
16. Be3 {[%clk 0:02:44]}  Rhf8 {[%clk 0:00:10]} 17. c4 {[%clk 0:02:31]}  Bf3 {[%clk 0:00:11]} 18. Qf1 {[%clk 0:02:28]}  exd4 {[%clk 0:00:11]}
19. Bg5 {[%clk 0:02:28]}  Rd7 {[%clk 0:00:11]} 20. h4 {[%clk 0:02:24]}  h6 {[%clk 0:00:11]} 21. Bd2 {[%clk 0:02:24]}  Rdf7 {[%clk 0:00:05]}
22. a4 {[%clk 0:02:23]}  Bg4 {[%clk 0:00:05]} 23. a5 {[%clk 0:02:21]}  Bxg3 {[%clk 0:00:05]} 24. fxg3 {[%clk 0:02:18]}  Rxf1+ {[%clk 0:00:07]}
25. Rxf1 {[%clk 0:02:19]}  Rd8 {[%clk 0:00:04]} 26. Rf7 {[%clk 0:02:17]}  g6 {[%clk 0:00:04]} 27. Bxh6 {[%clk 0:02:16]}  Bf5 {[%clk 0:00:05]}
28. a6 {[%clk 0:02:12]}  bxa6 {[%clk 0:00:06]} 29. Rxa6 {[%clk 0:02:10]}  Ne5 {[%clk 0:00:06]} 30. Rg7 {[%clk 0:02:07]}  Bxc2 {[%clk 0:00:06]}
31. Rxa7 {[%clk 0:02:07]}  Be4 {[%clk 0:00:04]} 32. Rgxc7+ {[%clk 0:02:07]}  Kb8 {[%clk 0:00:06]} 33. Bf4 {[%clk 0:02:08]}  Re8 {[%clk 0:00:07]}
34. Re7 {[%clk 0:02:06]} 1-0

[Event "2026 Biel Blitz Open"]
[Site "Biel, CH"]
[Date "2026.07.19"]
[Round "11"]
[White "Liu, Bei"]
[Black "Stefan, Romulus-Cristian"]
[Result "1/2-1/2"]
[Board "20"]
[TimeControl "180+2"]
[WhiteFideId "8603596"]
[BlackFideId "1232835"]
[WhiteElo "2170"]
[BlackElo "2048"]
[BlackTitle "CM"]
[WhiteClock "0:00:01"]
[BlackClock "0:00:51"]
[Variant "Standard"]
[EndDate "2026.07.19"]
[EndTime "15:31:17"]

1. e4 {[%clk 0:03:03]}  e5 {[%clk 0:03:03]} 2. Nf3 {[%clk 0:03:04]}  Nc6 {[%clk 0:03:05]} 3. Bb5 {[%clk 0:03:05]}  a6 {[%clk 0:03:06]}
4. Ba4 {[%clk 0:03:06]}  Nf6 {[%clk 0:03:07]} 5. O-O {[%clk 0:03:07]}  Be7 {[%clk 0:03:09]} 6. Re1 {[%clk 0:03:04]}  b5 {[%clk 0:03:10]}
7. Bb3 {[%clk 0:03:06]}  d6 {[%clk 0:03:11]} 8. c3 {[%clk 0:03:06]}  O-O {[%clk 0:03:11]} 9. h3 {[%clk 0:03:07]}  Bb7 {[%clk 0:03:11]}
10. d4 {[%clk 0:03:04]}  Re8 {[%clk 0:03:12]} 11. Ng5 {[%clk 0:03:04]}  Rf8 {[%clk 0:03:13]} 12. Nf3 {[%clk 0:03:05]}  Re8 {[%clk 0:03:15]}
13. Nbd2 {[%clk 0:03:06]}  Bf8 {[%clk 0:03:16]} 14. a3 {[%clk 0:02:55]}  Nb8 {[%clk 0:03:15]} 15. Bc2 {[%clk 0:02:48]}  h6 {[%clk 0:03:15]}
16. b3 {[%clk 0:02:35]}  Nbd7 {[%clk 0:03:01]} 17. Bd3 {[%clk 0:02:25]}  d5 {[%clk 0:02:57]} 18. dxe5 {[%clk 0:02:13]}  dxe4 {[%clk 0:02:50]}
19. Nxe4 {[%clk 0:01:53]}  Nxe4 {[%clk 0:02:45]} 20. Bxe4 {[%clk 0:01:53]}  Bxe4 {[%clk 0:02:45]} 21. Rxe4 {[%clk 0:01:53]}  Nxe5 {[%clk 0:02:41]}
22. Qxd8 {[%clk 0:01:17]}  Nxf3+ {[%clk 0:02:37]} 23. gxf3 {[%clk 0:01:18]}  Raxd8 {[%clk 0:02:38]} 24. Bf4 {[%clk 0:01:18]}  Rxe4 {[%clk 0:02:31]}
25. fxe4 {[%clk 0:01:19]}  Rd3 {[%clk 0:02:22]} 26. c4 {[%clk 0:00:40]}  Rxb3 {[%clk 0:02:16]} 27. cxb5 {[%clk 0:00:40]}  axb5 {[%clk 0:02:11]}
28. a4 {[%clk 0:00:41]}  bxa4 {[%clk 0:01:25]} 29. Rxa4 {[%clk 0:00:42]}  Bd6 {[%clk 0:01:23]} 30. Bxd6 {[%clk 0:00:38]}  cxd6 {[%clk 0:01:24]}
31. Rd4 {[%clk 0:00:39]}  Rxh3 {[%clk 0:01:24]} 32. Rxd6 {[%clk 0:00:40]}  f6 {[%clk 0:01:18]} 33. Rd7 {[%clk 0:00:36]}  Kh7 {[%clk 0:01:17]}
34. Kg2 {[%clk 0:00:37]}  Ra3 {[%clk 0:01:17]} 35. f3 {[%clk 0:00:38]}  Kg6 {[%clk 0:01:18]} 36. Kg3 {[%clk 0:00:39]}  h5 {[%clk 0:01:18]}
37. Kf4 {[%clk 0:00:34]}  Rb3 {[%clk 0:01:05]} 38. Rd8 {[%clk 0:00:32]}  Kh6 {[%clk 0:00:56]} 39. Rh8+ {[%clk 0:00:32]}  Kg6 {[%clk 0:00:57]}
40. Rf8 {[%clk 0:00:24]}  h4 {[%clk 0:00:58]} 41. Rh8 {[%clk 0:00:25]}  Kf7 {[%clk 0:00:58]} 42. Kg4 {[%clk 0:00:25]}  g5 {[%clk 0:00:56]}
43. f4 {[%clk 0:00:14]}  Rg3+ {[%clk 0:00:50]} 44. Kf5 {[%clk 0:00:12]}  Rf3 {[%clk 0:00:45]} 45. Rh7+ {[%clk 0:00:09]}  Kg8 {[%clk 0:00:47]}
46. Ra7 {[%clk 0:00:07]}  Rxf4+ {[%clk 0:00:47]} 47. Kg6 {[%clk 0:00:08]}  Kf8 {[%clk 0:00:45]} 48. e5 {[%clk 0:00:05]}  fxe5 {[%clk 0:00:49]}
49. Kxg5 {[%clk 0:00:06]}  Re4 {[%clk 0:00:47]} 50. Kf5 {[%clk 0:00:07]}  Re3 {[%clk 0:00:47]} 51. Rh7 {[%clk 0:00:07]}  h3 {[%clk 0:00:48]}
52. Kg4 {[%clk 0:00:04]}  Kg8 {[%clk 0:00:45]} 53. Rxh3 {[%clk 0:00:05]}  Rxh3 {[%clk 0:00:46]} 54. Kxh3 {[%clk 0:00:07]}  Kf7 {[%clk 0:00:48]}
55. Kg3 {[%clk 0:00:06]}  Ke6 {[%clk 0:00:47]} 56. Kf3 {[%clk 0:00:07]}  Kf5 {[%clk 0:00:49]} 57. Ke3 {[%clk 0:00:09]}  e4 {[%clk 0:00:49]}
58. Ke2 {[%clk 0:00:10]}  Ke5 {[%clk 0:00:50]} 59. Ke3 {[%clk 0:00:12]}  Kf5 {[%clk 0:00:51]} 60. Ke2 {[%clk 0:00:01]} 1/2-1/2

[Event "2026 Biel Blitz Open"]
[Site "Biel, CH"]
[Date "2026.07.19"]
[Round "11"]
[White "Dietiker, Manuel"]
[Black "Kelecevic, Nedeljko"]
[Result "0-1"]
[Board "21"]
[TimeControl "180+2"]
[WhiteFideId "1317377"]
[BlackFideId "14400537"]
[WhiteElo "2002"]
[BlackElo "2150"]
[BlackTitle "IM"]
[WhiteClock "0:00:24"]
[BlackClock "0:01:07"]
[Variant "Standard"]
[EndDate "2026.07.19"]
[EndTime "15:31:40"]

1. e4 {[%clk 0:03:02]}  e6 {[%clk 0:03:04]} 2. d4 {[%clk 0:03:01]}  d5 {[%clk 0:03:05]} 3. Bd3 {[%clk 0:03:02]}  dxe4 {[%clk 0:02:59]}
4. Bxe4 {[%clk 0:03:03]}  Nf6 {[%clk 0:03:00]} 5. Bf3 {[%clk 0:03:03]}  c5 {[%clk 0:03:02]} 6. c3 {[%clk 0:03:03]}  cxd4 {[%clk 0:03:01]}
7. cxd4 {[%clk 0:03:03]}  Nc6 {[%clk 0:03:00]} 8. Ne2 {[%clk 0:03:04]}  Be7 {[%clk 0:02:55]} 9. O-O {[%clk 0:03:02]}  O-O {[%clk 0:02:56]}
10. Nbc3 {[%clk 0:03:00]}  Nb4 {[%clk 0:02:57]} 11. Bf4 {[%clk 0:02:50]}  Nbd5 {[%clk 0:02:58]} 12. Bg3 {[%clk 0:02:50]}  a6 {[%clk 0:02:52]}
13. Qb3 {[%clk 0:02:45]}  b5 {[%clk 0:02:51]} 14. Rac1 {[%clk 0:02:32]}  Bb7 {[%clk 0:02:52]} 15. a4 {[%clk 0:02:28]}  Nxc3 {[%clk 0:02:36]}
16. Rxc3 {[%clk 0:02:24]}  Bxf3 {[%clk 0:02:35]} 17. Rxf3 {[%clk 0:02:23]}  bxa4 {[%clk 0:02:31]} 18. Qxa4 {[%clk 0:02:20]}  Nd5 {[%clk 0:02:31]}
19. Nc3 {[%clk 0:02:02]}  Ra7 {[%clk 0:02:20]} 20. Ne4 {[%clk 0:01:50]}  Rb7 {[%clk 0:02:17]} 21. Rb3 {[%clk 0:01:44]}  Rxb3 {[%clk 0:02:10]}
22. Qxb3 {[%clk 0:01:45]}  Qd7 {[%clk 0:02:07]} 23. Nc5 {[%clk 0:01:43]}  Qa7 {[%clk 0:01:55]} 24. Rc1 {[%clk 0:01:28]}  Rc8 {[%clk 0:01:52]}
25. Qc4 {[%clk 0:01:25]}  a5 {[%clk 0:01:47]} 26. h3 {[%clk 0:01:22]}  h6 {[%clk 0:01:45]} 27. b3 {[%clk 0:01:09]}  Qb6 {[%clk 0:01:35]}
28. Qc2 {[%clk 0:00:53]}  Bd6 {[%clk 0:01:29]} 29. Bxd6 {[%clk 0:00:49]}  Qxd6 {[%clk 0:01:30]} 30. Qd2 {[%clk 0:00:50]}  Nb4 {[%clk 0:01:15]}
31. Ra1 {[%clk 0:00:46]}  Rxc5 {[%clk 0:01:18]} 32. Ra4 {[%clk 0:00:29]}  Rd5 {[%clk 0:01:18]} 33. Qc3 {[%clk 0:00:30]}  Rxd4 {[%clk 0:01:11]}
34. g3 {[%clk 0:00:28]}  Rd1+ {[%clk 0:01:05]} 35. Kh2 {[%clk 0:00:24]}  Qd5 {[%clk 0:01:07]} 0-1

[Event "2026 Biel Blitz Open"]
[Site "Biel, CH"]
[Date "2026.07.19"]
[Round "11"]
[White "Clausen, Martin"]
[Black "Gireada, Daniel"]
[Result "1-0"]
[Board "22"]
[TimeControl "180+2"]
[WhiteFideId "1314882"]
[BlackFideId "1206451"]
[WhiteElo "1956"]
[BlackElo "2148"]
[WhiteClock "0:00:18"]
[BlackClock "0:00:14"]
[Variant "Standard"]
[EndDate "2026.07.19"]
[EndTime "15:25:38"]

1. e4 {[%clk 0:03:01]}  c6 {[%clk 0:03:03]} 2. d4 {[%clk 0:03:01]}  d5 {[%clk 0:03:04]} 3. Nc3 {[%clk 0:02:56]}  dxe4 {[%clk 0:03:00]}
4. Bc4 {[%clk 0:02:56]}  Nf6 {[%clk 0:02:53]} 5. f3 {[%clk 0:02:57]}  exf3 {[%clk 0:02:49]} 6. Nxf3 {[%clk 0:02:57]}  e6 {[%clk 0:02:48]}
7. O-O {[%clk 0:02:57]}  b5 {[%clk 0:02:33]} 8. Bd3 {[%clk 0:02:56]}  Nbd7 {[%clk 0:02:27]} 9. Bg5 {[%clk 0:02:38]}  Be7 {[%clk 0:02:27]}
10. Qe1 {[%clk 0:02:20]}  h6 {[%clk 0:02:01]} 11. Bf4 {[%clk 0:01:58]}  Nb6 {[%clk 0:01:52]} 12. Rd1 {[%clk 0:01:55]}  Nbd5 {[%clk 0:01:47]}
13. Be5 {[%clk 0:01:06]}  Bb7 {[%clk 0:01:35]} 14. a3 {[%clk 0:01:01]}  a6 {[%clk 0:01:36]} 15. Nxd5 {[%clk 0:00:58]}  Nxd5 {[%clk 0:01:22]}
16. Be4 {[%clk 0:00:52]}  Nf6 {[%clk 0:01:19]} 17. Bd3 {[%clk 0:00:51]}  c5 {[%clk 0:00:58]} 18. dxc5 {[%clk 0:00:44]}  Bxc5+ {[%clk 0:00:58]}
19. Kh1 {[%clk 0:00:45]}  Qe7 {[%clk 0:00:52]} 20. Nd2 {[%clk 0:00:23]}  Bd6 {[%clk 0:00:45]} 21. Nf3 {[%clk 0:00:22]}  Rd8 {[%clk 0:00:42]}
22. Qe2 {[%clk 0:00:13]}  Bxf3 {[%clk 0:00:31]} 23. Rxf3 {[%clk 0:00:13]}  Bxe5 {[%clk 0:00:28]} 24. Qxe5 {[%clk 0:00:14]}  O-O {[%clk 0:00:15]}
25. Rdf1 {[%clk 0:00:15]}  Rd5 {[%clk 0:00:14]} 26. Qg3 {[%clk 0:00:14]}  Rg5 {[%clk 0:00:15]} 27. Qf2 {[%clk 0:00:16]}  Rd8 {[%clk 0:00:15]}
28. Rg3 {[%clk 0:00:15]}  Rxg3 {[%clk 0:00:15]} 29. Qxg3 {[%clk 0:00:16]}  Nd5 {[%clk 0:00:13]} 30. Re1 {[%clk 0:00:15]}  g6 {[%clk 0:00:11]}
31. Qe5 {[%clk 0:00:16]}  Qf6 {[%clk 0:00:11]} 32. Qe4 {[%clk 0:00:15]}  Nf4 {[%clk 0:00:10]} 33. Rf1 {[%clk 0:00:14]}  Rd4 {[%clk 0:00:11]}
34. Qa8+ {[%clk 0:00:14]}  Kg7 {[%clk 0:00:12]} 35. g3 {[%clk 0:00:13]}  g5 {[%clk 0:00:09]} 36. gxf4 {[%clk 0:00:13]}  gxf4 {[%clk 0:00:10]}
37. Rg1+ {[%clk 0:00:12]}  Qg5 {[%clk 0:00:10]} 38. Rxg5+ {[%clk 0:00:12]}  hxg5 {[%clk 0:00:10]} 39. Qxa6 {[%clk 0:00:13]}  f3 {[%clk 0:00:10]}
40. Kg1 {[%clk 0:00:14]}  Rf4 {[%clk 0:00:11]} 41. Kf2 {[%clk 0:00:15]}  e5 {[%clk 0:00:13]} 42. Qd6 {[%clk 0:00:15]}  f6 {[%clk 0:00:13]}
43. Qe7+ {[%clk 0:00:16]}  Kg8 {[%clk 0:00:13]} 44. Bxb5 {[%clk 0:00:15]}  e4 {[%clk 0:00:13]} 45. Bc4+ {[%clk 0:00:16]}  Kh8 {[%clk 0:00:14]}
46. Qf8+ {[%clk 0:00:17]}  Kh7 {[%clk 0:00:12]} 47. Bg8+ {[%clk 0:00:17]}  Kh8 {[%clk 0:00:16]} 48. Bf7+ {[%clk 0:00:17]}  Kh7 {[%clk 0:00:16]}
49. Qg8+ {[%clk 0:00:18]}  Kh6 {[%clk 0:00:14]} 50. Qg6# {[%clk 0:00:18]} 1-0

[Event "2026 Biel Blitz Open"]
[Site "Biel, CH"]
[Date "2026.07.19"]
[Round "11"]
[White "Huang,Hsuan-Chen"]
[Black "Matsumura, Cocoro"]
[Result "1-0"]
[Board "23"]
[TimeControl "180+2"]
[WhiteFideId "16303121"]
[BlackFideId "36087114"]
[WhiteElo "1833"]
[BlackElo "2131"]
[BlackTitle "CM"]
[WhiteClock "0:00:18"]
[BlackClock "0:00:09"]
[Variant "Standard"]
[EndDate "2026.07.19"]
[EndTime "15:25:46"]

1. d4 {[%clk 0:03:03]}  d5 {[%clk 0:03:04]} 2. Nf3 {[%clk 0:03:03]}  Nf6 {[%clk 0:03:05]} 3. e3 {[%clk 0:03:04]}  c5 {[%clk 0:03:06]}
4. c3 {[%clk 0:03:05]}  Nc6 {[%clk 0:03:08]} 5. Nbd2 {[%clk 0:03:05]}  cxd4 {[%clk 0:03:09]} 6. exd4 {[%clk 0:03:06]}  Bf5 {[%clk 0:03:10]}
7. h3 {[%clk 0:03:06]}  e6 {[%clk 0:03:11]} 8. g4 {[%clk 0:03:04]}  Bg6 {[%clk 0:03:12]} 9. Ne5 {[%clk 0:03:05]}  Nxe5 {[%clk 0:03:10]}
10. dxe5 {[%clk 0:03:06]}  Nd7 {[%clk 0:03:07]} 11. h4 {[%clk 0:03:01]}  Nxe5 {[%clk 0:02:58]} 12. Bb5+ {[%clk 0:02:56]}  Nc6 {[%clk 0:02:11]}
13. h5 {[%clk 0:02:56]}  Be4 {[%clk 0:02:13]} 14. f3 {[%clk 0:02:24]}  Qb6 {[%clk 0:02:14]} 15. Bxc6+ {[%clk 0:02:21]}  bxc6 {[%clk 0:02:15]}
16. fxe4 {[%clk 0:02:20]}  Qe3+ {[%clk 0:02:16]} 17. Qe2 {[%clk 0:02:20]}  Qg3+ {[%clk 0:02:17]} 18. Kf1 {[%clk 0:02:04]}  Be7 {[%clk 0:02:04]}
19. exd5 {[%clk 0:01:54]}  cxd5 {[%clk 0:02:04]} 20. Qf3 {[%clk 0:01:54]}  Qe5 {[%clk 0:01:55]} 21. Nb3 {[%clk 0:01:54]}  O-O {[%clk 0:01:50]}
22. Bf4 {[%clk 0:01:52]}  Qf6 {[%clk 0:01:50]} 23. Kg2 {[%clk 0:01:52]}  e5 {[%clk 0:01:47]} 24. Bg3 {[%clk 0:01:46]}  Qe6 {[%clk 0:01:46]}
25. Rhe1 {[%clk 0:01:41]}  e4 {[%clk 0:01:22]} 26. Qf5 {[%clk 0:01:42]}  Qc6 {[%clk 0:01:09]} 27. Rad1 {[%clk 0:01:38]}  Rad8 {[%clk 0:01:06]}
28. Nd4 {[%clk 0:01:31]}  Qb6 {[%clk 0:01:07]} 29. Re2 {[%clk 0:01:29]}  g6 {[%clk 0:01:06]} 30. Qf2 {[%clk 0:01:23]}  Bc5 {[%clk 0:00:46]}
31. b4 {[%clk 0:01:16]}  Be7 {[%clk 0:00:47]} 32. a4 {[%clk 0:01:06]}  Qa6 {[%clk 0:00:39]} 33. b5 {[%clk 0:00:57]}  Qxa4 {[%clk 0:00:34]}
34. Nc6 {[%clk 0:00:42]}  Bg5 {[%clk 0:00:08]} 35. Rb1 {[%clk 0:00:38]}  e3 {[%clk 0:00:06]} 36. Rxe3 {[%clk 0:00:30]}  Qxg4 {[%clk 0:00:03]}
37. Re5 {[%clk 0:00:19]}  f6 {[%clk 0:00:04]} 38. Re7 {[%clk 0:00:14]}  f5 {[%clk 0:00:05]} 39. Nxd8 {[%clk 0:00:14]}  Bxe7 {[%clk 0:00:05]}
40. Ne6 {[%clk 0:00:14]}  Qe4+ {[%clk 0:00:07]} 41. Kh2 {[%clk 0:00:12]}  Qxe6 {[%clk 0:00:06]} 42. Re1 {[%clk 0:00:13]}  Qd7 {[%clk 0:00:06]}
43. hxg6 {[%clk 0:00:13]}  hxg6 {[%clk 0:00:06]} 44. Qd4 {[%clk 0:00:14]}  Bf6 {[%clk 0:00:07]} 45. Qc5 {[%clk 0:00:14]}  Kg7 {[%clk 0:00:07]}
46. Be5 {[%clk 0:00:13]}  Bxe5+ {[%clk 0:00:07]} 47. Rxe5 {[%clk 0:00:14]}  Rh8+ {[%clk 0:00:07]} 48. Kg2 {[%clk 0:00:14]}  f4 {[%clk 0:00:08]}
49. Re7+ {[%clk 0:00:15]}  Qxe7 {[%clk 0:00:08]} 50. Qxe7+ {[%clk 0:00:16]}  Kh6 {[%clk 0:00:10]} 51. Qe5 {[%clk 0:00:17]}  g5 {[%clk 0:00:09]}
52. Qxh8+ {[%clk 0:00:18]} 1-0

[Event "2026 Biel Blitz Open"]
[Site "Biel, CH"]
[Date "2026.07.19"]
[Round "11"]
[White "Kwiatkowski, Maciej"]
[Black "Stefan, Iulia-Cristiana"]
[Result "0-1"]
[Board "24"]
[TimeControl "180+2"]
[WhiteFideId "1360175"]
[BlackFideId "1273876"]
[WhiteElo "1967"]
[BlackElo "2050"]
[BlackTitle "WFM"]
[WhiteClock "0:00:12"]
[BlackClock "0:00:09"]
[Variant "Standard"]
[EndDate "2026.07.19"]
[EndTime "15:30:06"]

1. e4 {[%clk 0:03:02]}  e5 {[%clk 0:03:04]} 2. Nf3 {[%clk 0:03:03]}  Nc6 {[%clk 0:03:05]} 3. Bb5 {[%clk 0:03:04]}  a6 {[%clk 0:03:06]}
4. Ba4 {[%clk 0:03:05]}  d6 {[%clk 0:03:02]} 5. c3 {[%clk 0:02:59]}  Bd7 {[%clk 0:03:03]} 6. O-O {[%clk 0:02:59]}  g6 {[%clk 0:03:04]}
7. d4 {[%clk 0:02:43]}  Bg7 {[%clk 0:03:04]} 8. h3 {[%clk 0:02:28]}  b5 {[%clk 0:03:02]} 9. Bb3 {[%clk 0:02:28]}  Nf6 {[%clk 0:03:03]}
10. Re1 {[%clk 0:02:29]}  O-O {[%clk 0:03:03]} 11. Nbd2 {[%clk 0:02:27]}  Re8 {[%clk 0:03:04]} 12. Bc2 {[%clk 0:01:54]}  Qc8 {[%clk 0:02:40]}
13. Nf1 {[%clk 0:01:48]}  Na5 {[%clk 0:02:34]} 14. Ng3 {[%clk 0:01:40]}  c5 {[%clk 0:02:26]} 15. d5 {[%clk 0:01:39]}  Nc4 {[%clk 0:02:02]}
16. b3 {[%clk 0:01:37]}  Nb6 {[%clk 0:02:03]} 17. Be3 {[%clk 0:01:35]}  Qc7 {[%clk 0:01:59]} 18. Nh2 {[%clk 0:01:06]}  a5 {[%clk 0:01:49]}
19. f4 {[%clk 0:00:41]}  exf4 {[%clk 0:01:40]} 20. Bxf4 {[%clk 0:00:42]}  c4 {[%clk 0:01:29]} 21. Qf3 {[%clk 0:00:38]}  cxb3 {[%clk 0:01:00]}
22. axb3 {[%clk 0:00:39]}  Rec8 {[%clk 0:00:58]} 23. e5 {[%clk 0:00:34]}  Nfxd5 {[%clk 0:00:52]} 24. exd6 {[%clk 0:00:30]}  Qxc3 {[%clk 0:00:51]}
25. Qxc3 {[%clk 0:00:23]}  Rxc3 {[%clk 0:00:52]} 26. Be4 {[%clk 0:00:24]}  Rxb3 {[%clk 0:00:29]} 27. Bg5 {[%clk 0:00:18]}  Bxa1 {[%clk 0:00:29]}
28. Rxa1 {[%clk 0:00:19]}  a4 {[%clk 0:00:22]} 29. Ng4 {[%clk 0:00:18]}  a3 {[%clk 0:00:13]} 30. Bf6 {[%clk 0:00:12]}  Bxg4 {[%clk 0:00:09]}
31. hxg4 {[%clk 0:00:12]} 0-1

[Event "2026 Biel Blitz Open"]
[Site "Biel, CH"]
[Date "2026.07.19"]
[Round "11"]
[White "Xu, Chang(CQ)"]
[Black "Python, Noe"]
[Result "1-0"]
[Board "25"]
[TimeControl "180+2"]
[WhiteFideId "8641757"]
[BlackFideId "1337637"]
[WhiteElo "2049"]
[BlackElo "2010"]
[WhiteClock "0:01:09"]
[BlackClock "0:00:04"]
[Variant "Standard"]
[EndDate "2026.07.19"]
[EndTime "15:31:32"]

1. e4 {[%clk 0:03:02]}  c6 {[%clk 0:03:03]} 2. d4 {[%clk 0:03:03]}  d5 {[%clk 0:03:04]} 3. e5 {[%clk 0:03:04]}  c5 {[%clk 0:03:06]}
4. Nf3 {[%clk 0:03:05]}  cxd4 {[%clk 0:03:06]} 5. Nxd4 {[%clk 0:03:05]}  Nc6 {[%clk 0:03:06]} 6. Nxc6 {[%clk 0:03:06]}  bxc6 {[%clk 0:03:08]}
7. Bd3 {[%clk 0:03:07]}  e6 {[%clk 0:03:04]} 8. Nd2 {[%clk 0:03:08]}  a5 {[%clk 0:03:04]} 9. Qe2 {[%clk 0:03:08]}  Qb6 {[%clk 0:02:59]}
10. Nf3 {[%clk 0:03:04]}  Ba6 {[%clk 0:03:00]} 11. O-O {[%clk 0:03:01]}  Ne7 {[%clk 0:02:46]} 12. Be3 {[%clk 0:02:57]}  c5 {[%clk 0:02:37]}
13. c4 {[%clk 0:02:50]}  d4 {[%clk 0:02:23]} 14. Bf4 {[%clk 0:02:44]}  Ng6 {[%clk 0:02:21]} 15. Bg3 {[%clk 0:02:43]}  Be7 {[%clk 0:02:09]}
16. h4 {[%clk 0:02:42]}  Rb8 {[%clk 0:02:07]} 17. b3 {[%clk 0:02:39]}  Nf8 {[%clk 0:02:02]} 18. h5 {[%clk 0:02:29]}  h6 {[%clk 0:02:03]}
19. Rfe1 {[%clk 0:02:27]}  Nd7 {[%clk 0:02:00]} 20. Bh4 {[%clk 0:02:28]}  Qd8 {[%clk 0:01:57]} 21. Bxe7 {[%clk 0:02:24]}  Qxe7 {[%clk 0:01:58]}
22. Qe4 {[%clk 0:02:20]}  Bb7 {[%clk 0:01:59]} 23. Qg4 {[%clk 0:02:18]}  O-O {[%clk 0:01:38]} 24. Qg3 {[%clk 0:02:11]}  Bxf3 {[%clk 0:01:14]}
25. Qxf3 {[%clk 0:02:08]}  f5 {[%clk 0:00:57]} 26. exf6 {[%clk 0:01:59]}  Nxf6 {[%clk 0:00:53]} 27. Qh3 {[%clk 0:01:39]}  e5 {[%clk 0:00:34]}
28. f3 {[%clk 0:01:40]}  Rbe8 {[%clk 0:00:34]} 29. Re2 {[%clk 0:01:40]}  Qd7 {[%clk 0:00:29]} 30. Bf5 {[%clk 0:01:35]}  Qb7 {[%clk 0:00:28]}
31. Rae1 {[%clk 0:01:33]}  Qc7 {[%clk 0:00:19]} 32. Be6+ {[%clk 0:01:33]}  Kh8 {[%clk 0:00:20]} 33. Rxe5 {[%clk 0:01:30]}  Re7 {[%clk 0:00:15]}
34. f4 {[%clk 0:01:26]}  Rfe8 {[%clk 0:00:14]} 35. f5 {[%clk 0:01:27]}  a4 {[%clk 0:00:10]} 36. bxa4 {[%clk 0:01:14]}  Qa5 {[%clk 0:00:12]}
37. Qa3 {[%clk 0:01:13]}  Nxh5 {[%clk 0:00:10]} 38. Qxc5 {[%clk 0:01:11]}  Qxa4 {[%clk 0:00:09]} 39. Qxd4 {[%clk 0:01:10]}  Qa3 {[%clk 0:00:04]}
40. Qe3 {[%clk 0:01:08]}  Qa4 {[%clk 0:00:04]} 41. c5 {[%clk 0:01:09]}  Qxa2 {[%clk 0:00:04]} 42. Bxa2 {[%clk 0:01:09]} 1-0

[Event "2026 Biel Blitz Open"]
[Site "Biel, CH"]
[Date "2026.07.19"]
[Round "11"]
[White "Bajraktari, Perparim"]
[Black "Haugner, Jan"]
[Result "1-0"]
[Board "26"]
[TimeControl "180+2"]
[WhiteFideId "1307711"]
[BlackFideId "24655244"]
[WhiteElo "2045"]
[BlackElo "1976"]
[WhiteClock "0:01:00"]
[BlackClock "0:00:31"]
[Variant "Standard"]
[EndDate "2026.07.19"]
[EndTime "15:23:06"]

1. c4 {[%clk 0:03:02]}  e6 {[%clk 0:03:03]} 2. b3 {[%clk 0:03:03]}  d5 {[%clk 0:03:03]} 3. Bb2 {[%clk 0:03:05]}  Nf6 {[%clk 0:03:04]}
4. Nf3 {[%clk 0:03:05]}  Nc6 {[%clk 0:02:52]} 5. g3 {[%clk 0:03:06]}  d4 {[%clk 0:02:51]} 6. Bg2 {[%clk 0:03:07]}  Bc5 {[%clk 0:02:49]}
7. O-O {[%clk 0:03:04]}  O-O {[%clk 0:02:49]} 8. a3 {[%clk 0:03:02]}  a5 {[%clk 0:02:48]} 9. d3 {[%clk 0:03:00]}  e5 {[%clk 0:02:47]}
10. Nbd2 {[%clk 0:02:58]}  Re8 {[%clk 0:02:37]} 11. Ng5 {[%clk 0:02:59]}  Bf8 {[%clk 0:02:17]} 12. Rb1 {[%clk 0:02:43]}  h6 {[%clk 0:02:17]}
13. Nge4 {[%clk 0:02:44]}  Nxe4 {[%clk 0:02:18]} 14. Nxe4 {[%clk 0:02:44]}  f5 {[%clk 0:02:18]} 15. Nd2 {[%clk 0:02:37]}  Be6 {[%clk 0:01:37]}
16. Nf3 {[%clk 0:02:45]}  Bf7 {[%clk 0:01:35]} 17. e3 {[%clk 0:02:38]}  dxe3 {[%clk 0:01:32]} 18. fxe3 {[%clk 0:02:39]}  Bc5 {[%clk 0:01:32]}
19. d4 {[%clk 0:02:29]}  exd4 {[%clk 0:01:28]} 20. exd4 {[%clk 0:02:30]}  Bd6 {[%clk 0:01:15]} 21. Kh1 {[%clk 0:02:30]}  Bh5 {[%clk 0:01:06]}
22. Qd3 {[%clk 0:02:25]}  f4 {[%clk 0:01:02]} 23. c5 {[%clk 0:02:11]}  Be7 {[%clk 0:01:00]} 24. d5 {[%clk 0:02:10]}  Na7 {[%clk 0:00:56]}
25. b4 {[%clk 0:02:02]}  fxg3 {[%clk 0:00:55]} 26. hxg3 {[%clk 0:02:02]}  Bf6 {[%clk 0:00:43]} 27. Nd4 {[%clk 0:01:50]}  axb4 {[%clk 0:00:42]}
28. axb4 {[%clk 0:01:51]}  Bf7 {[%clk 0:00:38]} 29. Nf5 {[%clk 0:01:39]}  Bxb2 {[%clk 0:00:37]} 30. Rxb2 {[%clk 0:01:41]}  Qg5 {[%clk 0:00:28]}
31. Rbf2 {[%clk 0:01:34]}  Bg6 {[%clk 0:00:28]} 32. Qb3 {[%clk 0:01:19]}  Kh8 {[%clk 0:00:29]} 33. d6 {[%clk 0:01:20]}  cxd6 {[%clk 0:00:30]}
34. Nxd6 {[%clk 0:01:15]}  Re3 {[%clk 0:00:31]} 35. Rf8+ {[%clk 0:01:00]} 1-0